bitfinex-derivatives/quotes_ETHF0:USTF0_20250709
["timestamp","ask_amount","ask_price","bid_price","bid_amount"]
[1752101415634,1.4818842,2775.2,2775.1,4.41878354]
[1752101415831,2.4643842,2775.2,2775.1,3.69834354]
[1752101416332,2.4643842,2775.2,2775.1,4.41878354]
[1752101416531,1.4818842,2775.2,2775.1,3.69834354]
[1752101417433,2.4643842,2775.2,2775.1,3.69834354]
[1752101417634,2.4643842,2775.2,2775.1,6.02014637]
[1752101417635,0.1487742,2775.2,2775.1,6.02014637]
[1752101417837,0.1487742,2775.2,2775.1,7.25954637]
[1752101418937,0.1487742,2775.2,2775.1,7.25367825]
[1752101422735,0.7614742,2775.2,2775.1,7.25367825]
[1752101423136,2.4643842,2775.2,2775.1,3.69247542]
[1752101423331,2.4643842,2775.2,2775.1,5.29383825]
[1752101423537,2.4643842,2775.2,2775.1,3.69247542]
[1752101424537,2.4643842,2775.2,2775.1,0.48467542]
[1752101426240,0.72054,2774.7,2774.6,2.13800343]
[1752101426440,1.33324,2774.7,2774.6,0.5366406]
[1752101426638,2.31574,2774.7,2774.6,0.5366406]
[1752101427440,3.6826142,2774.7,2774.6,0.5366406]
[1752101428637,2.4645142,2774.7,2774.6,0.5366406]
[1752101432041,3.7138142,2774.7,2774.6,0.5366406]
[1752101432438,2.4645142,2774.7,2774.6,0.5366406]
[1752101435142,3.7896142,2774.7,2774.6,0.5366406]
[1752101454762,0.72059,2774.5,2774.4,1.60136283]
[1752101454959,2.32909,2774.5,2774.4,1.60136283]
[1752101455360,2.4778642,2774.5,2774.4,2.32198283]
[1752101455658,2.4778642,2774.5,2774.4,1.60136283]
[1752101455862,1.7572742,2774.5,2774.2,2.86694487]
[1752101456059,0.72065,2774.3,2774.2,5.35407487]
[1752101456254,2.32915,2774.3,2774.2,2.14627487]
[1752101456459,4.4308242,2774.3,2774.2,2.14627487]
[1752101456753,1.80175,2774.1,2773.5,3.2078]
[1752101456957,0.72082,2773.7,2773.6,0.72082]
[1752101457161,2.32932,2773.7,2773.6,0.72082]
[1752101457661,0.8048742,2773.7,2773.6,0.72082]
[1752101458064,0.1487742,2773.7,2773.6,1.72715528]
[1752101458260,0.1487742,2773.7,2773.6,7.96345528]
[1752101458665,3.20413047,2774.6,2774.5,0.72059]
[1752101459061,4.57259047,2774.7,2774.6,0.72057]
[1752101459260,5.22869047,2774.7,2774.6,0.72057]
[1752101459460,2.02456,2774.7,2774.6,0.72057]
[1752101459865,0.6561,2774.7,2774.6,3.92837]
[1752101460669,1.37664,2774.7,2774.6,3.92837]
[1752101460870,0.6561,2774.7,2774.6,3.92837]
[1752101461764,3.20413047,2775.2,2774.7,1.80136]
[1752101461967,0.6561,2775.1,2775.0,0.72046]
[1752101462163,1.37654,2775.1,2775.0,0.72046]
[1752101462363,0.6561,2775.1,2775.0,0.72046]
[1752101463065,1.6085,2775.1,2775.0,0.72046]
[1752101463770,0.6561,2775.1,2775.0,0.72046]
[1752101464068,0.6561,2775.1,2775.0,3.92826]
[1752101465059,0.72038,2775.4,2775.0,5.00896]
[1752101465270,0.6561,2775.3,2775.2,0.72041]
[1752101466475,1.6085,2775.3,2775.2,0.72041]
[1752101468067,0.6561,2775.3,2775.2,0.72041]
[1752101469870,1.37649,2775.3,2775.2,0.72041]
[1752101470072,2.35259,2775.3,2775.2,0.72041]
[1752101470570,1.6322,2775.3,2775.2,0.72041]
[1752101471973,1.6322,2775.3,2774.7,1.80135]
[1752101472174,2.01923,2775.2,2775.0,0.72045]
[1752101472368,2.32774,2775.1,2775.0,0.72045]
[1752101472562,4.24684,2775.1,2775.0,0.72045]
[1752101472768,0.72046,2775.0,2774.9,0.72047]
[1752101472968,0.72051,2774.9,2774.8,0.7205]
[1752101473178,2.32781,2774.9,2774.8,0.7205]
[1752101473375,0.72054,2774.8,2774.7,0.72052]
[1752101473564,2.32784,2774.8,2774.7,0.72052]
[1752101473963,2.32784,2774.8,2774.5,3.2078]
[1752101474171,0.72061,2774.5,2774.4,0.72059]
[1752101474368,1.35181,2774.5,2774.4,0.72059]
[1752101474570,2.32791,2774.5,2774.4,0.72059]
[1752101476571,0.72054,2774.8,2774.7,0.72052]
[1752101476775,0.72045,2775.1,2775.0,0.72043]
[1752101476970,1.35165,2775.1,2775.0,0.72043]
[1752101477676,0.6312,2775.1,2775.0,0.72043]
[1752101483075,0.72049,2774.9,2774.8,3.2078]
[1752101483377,0.72049,2774.9,2773.8,7.13824506]
[1752101483378,58.52774746,2774.9,2773.4,4.26905204]
[1752101483679,1.00582373,2773.6,2773.3,0.9982]
[1752101483870,1.98037,2773.5,2773.3,0.9982]
[1752101484073,0.72728,2773.4,2773.3,1.649]
[1752101484273,0.72728,2773.4,2773.3,0.6508]
[1752101484684,2.10118037,2773.4,2773.3,0.6508]
[1752101485978,2.3861241,2773.4,2773.1,0.9982]
[1752101486178,1.72675373,2773.2,2773.1,0.9982]
[1752101486376,1.73315373,2773.2,2773.1,1.649]
[1752101486581,1.72675373,2773.2,2773.1,1.649]
[1752101486782,0.72733,2773.2,2773.1,1.649]
[1752101486973,2.17961214,2773.2,2773.1,1.649]
[1752101487178,0.72733,2773.2,2773.1,1.649]
[1752101488480,2.18778984,2773.2,2773.1,1.649]
[1752101489985,2.18778984,2773.2,2772.9,3.2078]
[1752101489986,0.72098,2773.0,2772.9,3.2078]
[1752101490188,0.72109,2772.6,2772.5,4.206]
[1752101490384,0.72109,2772.6,2772.5,4.8568]
[1752101491187,0.72105,2772.8,2772.5,4.8568]
[1752101491490,0.72106,2772.7,2772.6,0.9982]
[1752101491686,0.72106,2772.7,2772.6,1.649]
[1752101491889,0.72106,2772.7,2772.2,1.2975]
[1752101491890,3.2078,2772.6,2771.0,0.9982]
[1752101492088,5.9807666,2771.1,2771.0,0.9982]
[1752101492289,3.2078,2771.1,2771.0,1.649]
[1752101492593,3.92928,2771.1,2771.0,1.649]
[1752101494990,0.72171,2770.2,2770.1,3.2078]
[1752101495290,0.72171,2770.2,2770.1,0.6508]
[1752101495484,3.2078,2770.4,2769.6,3.2078]
[1752101495485,1.80429,2770.3,2769.6,3.2078]
[1752101495686,1.35291,2770.2,2770.1,0.6508]
[1752101495885,0.72171,2770.2,2770.1,0.6508]
[1752101496996,55.15513047,2771.5,2770.1,0.6508]
[1752101496997,4.4442,2770.7,2770.1,0.6508]
[1752101497193,0.72167,2770.4,2770.2,0.9982]
[1752101497394,0.72167,2770.4,2770.3,0.6508]
[1752101497593,0.72167,2770.4,2770.3,1.6073]
[1752101497990,5.2592866,2770.7,2770.0,2.2691]
[1752101498199,2.0514866,2770.4,2769.7,0.6205]
[1752101498391,2.0514866,2770.4,2769.7,2.29883]
[1752101498591,0.72179,2769.9,2769.7,2.29883]
[1752101498790,0.72179,2769.9,2769.8,0.6508]
[1752101498990,0.72178,2770.0,2769.8,1.37262]
[1752101499291,0.72184,2769.7,2769.3,3.2078]
[1752101499493,0.72204,2769.0,2768.4,3.2078]
[1752101499796,0.72203,2769.0,2768.8,0.72206]
[1752101499993,3.2078,2769.1,2768.5,1.3064]
[1752101500200,0.72203,2769.0,2768.8,0.72207]
[1752101500490,0.72203,2769.0,2768.5,1.3064]
[1752101500689,3.2078,2769.1,2769.0,0.72203]
[1752101500895,0.72196,2769.3,2769.1,0.72198]
[1752101501195,3.2078,2769.4,2769.0,0.72201]
[1752101501398,0.72199,2769.2,2769.0,0.72203]
[1752101501594,3.2078,2769.4,2768.5,1.9244]
[1752101501794,3.92974,2769.4,2769.1,0.72198]
[1752101502197,3.2078,2769.4,2769.2,0.72197]
[1752101502393,3.92973,2769.4,2769.3,0.72195]
[1752101502695,3.2078,2769.4,2769.3,0.72195]
[1752101503393,3.2078,2769.4,2769.3,1.67845]
[1752101504090,3.2078,2769.8,2769.7,0.72184]
[1752101504398,3.2078,2769.8,2769.7,1.67834]
[1752101504998,1.2509,2770.4,2769.7,1.67834]
[1752101504999,3.2078,2770.4,2770.3,0.72169]
[1752101506897,0.72164,2770.5,2770.4,0.72166]
[1752101507299,0.72164,2770.5,2769.7,0.9565]
[1752101507300,0.72206,2768.9,2768.4,3.2078]
[1752101507503,2.24354163,2768.9,2768.6,0.72212]
[1752101507794,0.7221,2768.7,2768.6,0.72212]
[1752101508190,0.72213,2768.6,2768.4,0.72216]
[1752101508394,0.72214,2768.6,2768.1,1.9624]
[1752101508599,0.72214,2768.6,2768.5,0.9565]
[1752101509499,0.72212,2768.7,2768.5,1.67866]
[1752101510200,0.72213,2768.6,2768.5,0.9565]
[1752101511297,3.2078,2769.5,2768.5,11.40784163]
[1752101511494,0.7218,2769.9,2769.2,0.72197]
[1752101511895,6.17312163,2770.0,2769.2,0.72197]
[1752101512090,0.7218,2769.9,2769.2,0.72197]
[1752101512292,0.7218,2769.9,2769.2,1.99967]
[1752101512492,0.7218,2769.9,2769.2,1.2777]
[1752101512698,3.2078,2769.7,2769.6,0.72185]
[1752101513093,3.92965,2769.7,2769.5,0.72188]
[1752101513294,3.92965,2769.7,2769.4,0.7219]
[1752101513603,3.2078,2769.7,2769.6,0.72187]
[1752101514004,4.70289639,2769.7,2769.6,0.72187]
[1752101514907,2.24354163,2769.3,2768.2,1.80555]
[1752101515203,2.24354163,2768.7,2768.6,0.72211]
[1752101515404,2.96564163,2768.7,2768.5,0.72214]
[1752101516003,3.2078,2768.9,2768.2,1.80555]
[1752101516202,3.2078,2768.9,2768.8,0.72208]
[1752101516403,4.5315,2768.9,2768.8,0.72208]
[1752101517406,5.25355,2768.9,2768.8,0.72208]
[1752101517805,4.5315,2768.9,2768.8,0.72208]
[1752101518207,6.04813552,2768.9,2768.8,0.72208]
[1752101518408,6.77018552,2768.9,2768.8,0.72208]
[1752101519106,1.51795125,2768.9,2768.8,0.72208]
[1752101519313,3.2078,2769.5,2769.4,0.72192]
[1752101519512,4.72720448,2769.5,2769.4,0.72192]
[1752101519908,1.51940448,2769.5,2769.4,0.72192]
[1752101521208,1.51940448,2769.6,2769.2,1.80488]
[1752101521505,6.91892643,2769.5,2769.4,0.72192]
[1752101521711,4.48e-06,2769.5,2769.4,3.92972]
[1752101521909,2.18989435,2769.5,2769.4,8.92972]
[1752101522105,4.28702984,2769.8,2769.5,0.72189]
[1752101522413,4.28702984,2769.8,2769.7,3.92964]
[1752101522908,5.58942984,2770.2,2770.1,0.72174]
[1752101523114,2.02411,2770.2,2770.1,0.72174]
[1752101523511,1.3024,2770.2,2770.1,0.72174]
[1752101524205,4.28702984,2770.3,2770.2,0.72171]
[1752101524406,3.60861,2770.2,2768.3,0.9565]
[1752101524704,9.75503387,2769.2,2768.7,1.80526]
[1752101524904,5.45134163,2769.2,2769.1,0.722]
[1752101525211,5.45134163,2769.2,2768.8,1.8052]
[1752101525212,4.30369224,2769.3,2769.2,0.72197]
[1752101526114,4.30369224,2769.4,2769.3,0.72195]
[1752101526320,6.26941224,2769.4,2769.3,0.72195]
[1752101526511,0.72195,2769.3,2769.2,0.72196]
[1752101526712,1.96575,2769.3,2769.2,0.72196]
[1752101527112,1.2438,2769.3,2769.2,0.72196]
[1752101527314,1.96575,2769.3,2769.2,0.72196]
[1752101527613,1.2438,2769.3,2769.2,0.72196]
[1752101527806,5.54749224,2769.3,2769.2,0.72196]
[1752101531009,4.30369224,2769.3,2769.2,1.64006]
[1752101531213,7.51149224,2769.6,2769.5,0.72189]
[1752101531814,3.2078,2769.6,2769.5,0.72189]
[1752101532214,4.30369224,2769.7,2769.6,0.72187]
[1752101532613,4.30369224,2769.7,2769.5,0.9181]
[1752101532614,5.57059224,2769.8,2769.7,0.72184]
[1752101533720,7.06721621,2769.8,2769.7,0.72184]
[1752101535014,2.76352397,2769.8,2769.7,0.72184]
[1752101535416,3.48534397,2769.8,2769.7,0.72184]
[1752101535815,3.2078,2768.9,2767.5,5.33631506]
[1752101536014,3.2078,2767.8,2767.6,0.9181]
[1752101536219,3.2078,2768.1,2768.0,0.72229]
[1752101536415,3.2078,2768.4,2768.3,0.72219]
[1752101536621,4.70586059,2768.4,2768.3,1.64029]
[1752101539620,4.70586059,2768.4,2768.3,2.16591872]
[1752101542423,1.49806059,2768.4,2768.3,2.16591872]
[1752101544225,3.2078,2768.0,2766.4,6.25441506]
[1752101544426,3.2078,2766.8,2766.7,0.72263]
[1752101544622,3.2078,2766.8,2766.7,1.64073]
[1752101545220,3.2078,2767.1,2767.0,0.72255]
[1752101545530,3.2078,2767.1,2767.0,2.88495]
[1752101546618,4.70963884,2767.1,2767.0,2.88495]
[1752101547327,3.2078,2767.1,2767.0,2.88495]
[1752101547726,3.2078,2767.1,2767.0,0.72255]
[1752101549130,3.2078,2767.1,2767.0,1.64065]
[1752101550230,5.45134163,2767.4,2767.3,0.72247]
[1752101550830,3.2078,2767.4,2767.3,1.64057]
[1752101552734,3.2078,2767.4,2767.3,0.72247]
[1752101553130,3.2078,2767.4,2767.3,1.64057]
[1752101553933,3.2078,2767.4,2767.3,0.72247]
[1752101554133,3.2078,2767.1,2765.5,1.80733]
[1752101554339,3.2078,2766.0,2765.9,0.72283]
[1752101555236,2.24354163,2766.2,2766.1,0.72278]
[1752101556131,2.24354163,2766.2,2766.1,1.22406629]
[1752101556740,4.4799,2766.6,2766.1,1.22406629]
[1752101556741,2.24354163,2766.5,2766.4,0.7227]
[1752101556949,3.2078,2766.6,2766.5,0.72268]
[1752101557240,3.2078,2766.6,2766.5,1.22396629]
[1752101557541,3.2078,2766.6,2766.5,0.72268]
[1752101557840,3.2078,2766.6,2766.5,2.19670479]
[1752101559437,3.2078,2766.6,2766.5,2.19644223]
[1752101561040,3.2078,2766.6,2766.5,1.69588]
[1752101561241,3.2078,2766.9,2766.6,0.72265]
[1752101561441,3.2078,2766.9,2766.8,0.7226]
[1752101562541,3.2078,2766.9,2766.8,1.6958]
[1752101563041,3.2078,2767.3,2767.0,1.80632]
[1752101563341,3.2078,2767.3,2767.2,0.72249]
[1752101564342,3.2078,2767.3,2767.2,1.69569]
[1752101565542,4.68919252,2767.3,2767.2,1.69569]
[1752101565741,1.48139252,2767.3,2767.2,1.69569]
[1752101566441,0.6658,2767.5,2767.4,0.72244]
[1752101566633,2.14842614,2767.5,2767.4,0.72244]
[1752101566836,2.14842614,2767.5,2767.4,1.69564]
[1752101567034,3.2078,2767.6,2767.5,0.72242]
[1752101567236,4.69036317,2767.6,2767.5,0.72242]
[1752101568336,4.69036317,2767.6,2767.5,1.69562]
[1752101568739,3.2078,2767.6,2767.5,1.69562]
[1752101569945,2.24354163,2768.1,2768.0,0.72229]
[1752101570142,6.93251395,2768.1,2768.0,0.72229]
[1752101570342,6.68251395,2768.1,2768.0,0.72229]
[1752101570845,3.47471395,2768.1,2768.0,0.72229]
[1752101572948,0.72232,2768.0,2767.9,0.72229]
[1752101573248,3.46219232,2768.0,2767.9,0.72229]
[1752101573748,3.46429232,2768.0,2767.9,0.72229]
[1752101576855,5.52408969,2768.0,2767.9,0.72229]
[1752101578857,5.53432452,2768.0,2767.9,0.72229]
[1752101579558,5.53222452,2768.0,2767.9,0.72229]
[1752101580057,5.53432452,2768.0,2767.9,0.72229]
[1752101580453,5.53432452,2768.0,2766.8,0.28712795]
[1752101580454,3.2078,2767.3,2765.8,1.80714]
[1752101580754,3.2078,2766.1,2766.0,0.72281]
[1752101580960,5.26759737,2766.1,2766.0,0.72281]
[1752101581748,3.2078,2766.1,2766.0,0.72281]
[1752101584063,3.2078,2766.1,2766.0,1.69601]
[1752101587760,3.2078,2766.1,2766.0,2.31601]
[1752101588964,8.2096,2766.1,2763.6,10.63099834]
[1752101589165,2.15193,2764.8,2764.7,0.72315]
[1752101589462,3.43062459,2766.0,2765.7,0.72289]
[1752101589463,5.45652684,2765.8,2765.7,0.72289]
[1752101589962,3.2096,2766.1,2766.0,0.72281]
[1752101590169,4.70985693,2766.1,2766.0,0.72281]
[1752101590858,3.2096,2766.1,2766.0,0.72281]
[1752101592567,3.2078,2766.1,2766.0,0.72281]
[1752101593059,4.7018005,2766.1,2766.0,0.72281]
[1752101593464,1.4940005,2766.1,2766.0,0.72281]
[1752101594163,3.2078,2766.4,2766.3,0.72273]
[1752101594362,4.70092651,2766.4,2766.3,1.68333]
[1752101595063,3.2078,2766.4,2766.3,1.68333]
[1752101596268,3.2078,2766.7,2766.6,0.72265]
[1752101596568,3.2078,2766.7,2766.4,0.72269]
[1752101596762,2.24872684,2766.5,2766.4,0.72269]
[1752101597270,2.97140684,2766.5,2766.4,0.72269]
[1752101598764,2.24872684,2766.5,2766.4,0.72269]
[1752101598970,2.24872684,2766.5,2766.4,1.68329]
[1752101599568,5.45652684,2766.7,2766.6,0.72265]
[1752101599768,6.17914684,2766.7,2766.6,0.72265]
[1752101599968,5.45652684,2766.7,2766.6,0.72265]
[1752101600164,6.17914684,2766.7,2766.6,0.72265]
[1752101601877,5.45652684,2766.7,2766.6,0.72265]
[1752101602173,5.45652684,2766.7,2766.6,1.68325]
[1752101602570,5.45652684,2766.7,2766.6,2.31905]
[1752101602766,5.26907164,2766.7,2766.6,2.31905]
[1752101604574,5.26907164,2766.7,2766.6,3.54355]
[1752101605268,3.2078,2766.7,2766.6,3.54355]
[1752101606070,5.26907164,2767.0,2766.9,0.72257]
[1752101606273,2.06127164,2767.5,2767.4,0.72244]
[1752101606473,3.2078,2768.1,2768.0,0.72229]
[1752101606675,2.06127164,2768.0,2767.9,0.72231]
[1752101607673,2.78356164,2768.0,2767.9,0.72231]
[1752101607873,2.06127164,2768.0,2767.9,0.72231]
[1752101609475,2.78356164,2768.0,2767.9,0.72231]
[1752101610176,2.06467164,2768.0,2767.9,0.72231]
[1752101611370,2.78696164,2768.0,2767.9,0.72231]
[1752101613677,2.06467164,2768.0,2767.9,0.72231]
[1752101614179,2.78696164,2768.0,2767.9,0.72231]
[1752101614478,0.0034,2768.0,2767.9,2.31871]
[1752101614782,3.2078,2768.1,2768.0,0.72229]
[1752101615176,2.06127164,2768.5,2768.4,0.72215]
[1752101616480,3.2078,2768.6,2768.5,0.72216]
[1752101618279,3.2078,2768.6,2768.3,3.71311]
[1752101618280,2.06127164,2768.9,2768.8,0.72205]
[1752101618781,2.78332164,2768.9,2768.8,1.35785]
[1752101618980,2.06127164,2768.9,2768.8,1.35785]
[1752101619587,2.06307164,2768.9,2768.8,1.35785]
[1752101620985,2.78512164,2768.9,2768.8,1.35785]
[1752101621678,2.06307164,2768.9,2768.8,1.35785]
[1752101621882,2.06307164,2768.9,2768.8,2.36055]
[1752101627589,2.06127164,2769.2,2769.1,0.722]
[1752101627790,2.06127164,2769.2,2769.1,1.3641]
[1752101627992,2.06307164,2769.2,2769.1,1.3641]
[1752101628192,2.06127164,2769.2,2769.1,1.3641]
[1752101628391,2.06307164,2769.2,2769.1,1.3641]
[1752101628890,2.06307164,2769.2,2769.1,2.3668]
[1752101630592,2.78504164,2769.2,2769.1,2.3668]
[1752101630788,0.72208,2768.9,2768.6,3.2078]
[1752101630994,2.78340164,2768.7,2768.6,0.72213]
[1752101631194,2.78340164,2768.7,2768.6,1.85771926]
[1752101631493,2.78520164,2768.7,2768.6,1.85771926]
[1752101631694,2.06307164,2768.7,2768.6,1.85771926]
[1752101632095,2.06307164,2768.7,2768.6,2.86041926]
[1752101632789,2.06127164,2768.7,2768.6,4.14761926]
[1752101632995,2.06127164,2769.0,2768.8,1.80518]
[1752101633187,2.06127164,2769.0,2768.9,2.86033926]
[1752101633696,2.06127164,2769.0,2768.9,1.85763926]
[1752101633890,4.18120185,2769.0,2768.9,0.49348926]
[1752101634387,4.18120185,2769.0,2768.9,1.21553926]
[1752101636295,4.18120185,2769.0,2768.9,1.21714166]
[1752101637697,4.17850185,2769.0,2768.9,1.21714166]
[1752101638192,4.18120185,2769.0,2768.9,1.21714166]
[1752101638392,4.18120185,2769.0,2768.9,0.49509166]
[1752101639098,1.80522,2768.8,2768.3,0.72218]
[1752101639296,0.72226,2768.2,2768.1,0.72223]
[1752101639596,0.72223,2768.3,2768.2,0.72221]
[1752101639797,0.72223,2768.3,2768.2,1.36431]
[1752101640096,0.72493,2768.3,2768.2,1.36431]
[1752101640293,2.11648408,2768.3,2768.2,1.36431]
[1752101640801,0.72491,2768.3,2768.2,1.36431]
[1752101645296,2.1227844,2768.3,2768.2,1.36431]
[1752101646799,3.13390527,2768.3,2768.2,1.36431]
[1752101646994,3.13390527,2768.3,2768.2,0.6421]
[1752101647198,0.72231,2768.0,2767.9,0.72228]
[1752101647401,1.73343087,2768.0,2767.9,1.36438]
[1752101647792,3.134785,2768.0,2767.9,1.36438]
[1752101648297,2.412475,2768.0,2767.9,1.36438]
[1752101648603,3.134765,2768.0,2767.9,1.36438]
[1752101648792,4.18307139,2768.0,2767.9,1.36438]
[1752101651197,3.46078139,2768.0,2767.9,1.36438]
[1752101651398,4.18307139,2768.0,2767.9,1.36438]
[1752101652601,3.46078139,2768.0,2767.9,1.36438]
[1752101652802,1.39865413,2768.0,2767.9,2.33278]
[1752101653200,1.39865413,2768.0,2767.9,3.60718]
[1752101654100,2.78163726,2768.3,2768.2,0.72223]
[1752101654301,4.17913907,2768.3,2768.2,1.36193]
[1752101657403,4.17913907,2768.3,2768.2,0.6397]
[1752101657804,4.17913907,2768.3,2768.2,1.36193]
[1752101659804,3.45692907,2768.3,2768.2,2.33033]
[1752101661006,4.17913907,2768.3,2768.2,2.33033]
[1752101661705,3.45692907,2768.3,2768.2,2.33033]
[1752101662709,4.17913907,2768.3,2768.2,2.33033]
[1752101663109,4.17884371,2768.3,2768.2,2.33033]
[1752101664307,0.72255,2767.0,2766.9,4.30450457]
[1752101664507,0.72271,2766.4,2766.1,0.00160378]
[1752101664708,0.72271,2766.4,2766.3,0.6397]
[1752101664709,3.9305,2766.4,2766.3,0.6397]
[1752101665001,4.60548327,2766.4,2766.3,1.36243]
[1752101665207,0.36819036,2766.8,2766.3,8.8475]
[1752101665407,1.52006188,2766.7,2766.6,0.72265]
[1752101667104,3.2078,2767.0,2766.9,0.72257]
[1752101667808,3.2078,2767.0,2766.9,2.33067]
[1752101669519,3.2087,2767.0,2766.9,2.33067]
[1752101669821,3.93035,2767.0,2766.9,2.33067]
[1752101670020,3.2078,2767.0,2766.9,2.33067]
[1752101670221,3.2087,2767.0,2766.9,1.36227]
[1752101671317,3.93125,2767.0,2766.9,1.36227]
[1752101671617,3.2078,2767.0,2766.9,0.72257]
[1752101671816,3.2087,2767.0,2766.9,1.36227]
[1752101674426,1.80644,2766.9,2764.8,5.38160566]
[1752101674723,2.05942726,2765.3,2765.2,0.72302]
[1752101675324,3.2078,2765.5,2765.4,0.72296]
[1752101675519,0.0021,2766.2,2765.6,0.72291]
[1752101675520,3.2078,2765.8,2765.6,0.72291]
[1752101675726,2.78232726,2765.7,2765.6,0.72291]
[1752101676024,2.05942726,2765.7,2765.6,0.72291]
[1752101676515,2.78231726,2765.7,2765.6,0.72291]
[1752101676721,2.05942726,2765.7,2765.6,0.72291]
[1752101677329,2.78231726,2765.7,2765.6,0.72291]
[1752101677625,2.06032726,2765.7,2765.6,1.36261]
[1752101677830,2.78321726,2765.7,2765.6,0.6397]
[1752101678831,2.78321726,2765.7,2765.6,1.36261]
[1752101679228,2.78321726,2765.7,2765.6,0.6397]
[1752101680129,2.05942726,2765.7,2765.6,2.36231]
[1752101680334,0.723,2765.3,2765.2,0.723]
[1752101680632,0.723,2765.3,2765.2,1.3505]
[1752101681527,5.26722726,2765.4,2765.2,1.3505]
[1752101681528,5.26722726,2765.4,2765.2,0.6275]
[1752101681731,3.2078,2765.4,2765.3,0.72299]
[1752101682631,5.99013726,2765.7,2765.6,0.72291]
[1752101682833,5.99342726,2765.7,2765.6,0.72291]
[1752101683830,5.99012726,2765.7,2765.6,1.35041]
[1752101684235,5.99342726,2765.7,2765.6,1.35041]
[1752101684930,5.27052726,2765.7,2765.6,1.35041]
[1752101685126,0.0033,2765.7,2765.6,1.35041]
[1752101685331,5.99004726,2766.0,2765.9,0.72283]
[1752101685832,5.99334726,2766.0,2765.9,0.72283]
[1752101686235,0.72286,2765.9,2765.8,0.72284]
[1752101686435,0.72286,2765.8,2765.7,1.35437]
[1752101686934,0.72285,2765.9,2765.8,0.72283]
[1752101687533,3.93065,2765.9,2765.8,0.72283]
[1752101688933,3.93395,2765.9,2765.8,1.35033]
[1752101689436,3.2078,2765.9,2765.8,1.35033]
[1752101689636,5.26722726,2765.9,2765.8,1.35033]
[1752101690038,3.2078,2765.9,2765.8,1.35033]
[1752101690237,3.2078,2765.9,2765.8,2.57613]
[1752101690638,3.2078,2765.9,2765.8,3.57583]
[1752101691034,3.2078,2766.2,2766.1,0.72278]
[1752101691236,4.7629192,2766.2,2766.1,2.34998]
[1752101691639,1.5551192,2766.2,2766.1,2.34998]
[1752101691841,2.78215726,2766.3,2766.2,0.72276]
[1752101692137,3.61218439,2766.3,2766.2,2.34996]
[1752101692536,1.55275713,2766.3,2766.2,2.34996]
[1752101693741,3.93048,2766.5,2766.4,0.7227]
[1752101694042,4.76420289,2766.5,2766.4,2.3499]
[1752101694439,1.55640289,2766.5,2766.4,3.5601]
[1752101698542,2.05942726,2766.7,2766.6,0.72265]
[1752101698743,3.56045836,2766.7,2766.6,1.35015]
[1752101698940,3.56045836,2766.7,2766.6,2.34985]
[1752101699139,6.76825836,2766.7,2766.6,2.34985]
[1752101699346,4.7088311,2766.7,2766.6,2.34985]
[1752101699839,3.2078,2766.7,2766.6,2.34985]
[1752101700542,2.47316,2767.4,2766.8,1.80648]
[1752101700543,3.2078,2767.1,2766.8,1.80648]
[1752101700746,3.93032,2767.1,2767.0,1.35005]
[1752101701044,4.70684156,2767.1,2767.0,2.34975]
[1752101701746,5.43336156,2767.1,2767.0,2.34975]
[1752101702543,7.49278882,2767.1,2767.0,2.34975]
[1752101705945,6.76626882,2767.1,2767.0,2.34975]
[1752101706146,6.76626882,2767.1,2767.0,3.56905]
[1752101707049,3.2078,2767.1,2767.0,3.56905]
[1752101707743,4.21961445,2767.6,2767.5,0.72242]
[1752101707942,2.508165,2767.6,2767.5,2.28922]
[1752101708942,4.70415055,2767.6,2767.5,2.28922]
[1752101709447,4.70815055,2767.6,2767.5,2.28922]
[1752101709647,4.70715055,2767.6,2767.5,2.28922]
[1752101712446,0.72246,2767.4,2767.3,0.72243]
[1752101712647,2.78218595,2767.4,2767.3,1.33973]
[1752101713446,2.78218595,2767.4,2767.3,0.72243]
[1752101713847,0.72252,2767.1,2767.0,0.9393]
[1752101714048,2.78224595,2767.1,2767.0,1.33983]
[1752101714244,2.78224595,2767.1,2767.0,0.6173]
[1752101714445,0.72255,2767.0,2766.9,0.72256]
[1752101714644,0.72255,2767.0,2766.9,1.33986]
[1752101715649,0.72255,2767.0,2766.9,0.6173]
[1752101715840,0.72555,2767.0,2766.9,1.33987]
[1752101716040,0.72255,2767.0,2766.9,1.33987]
[1752101716246,0.72555,2767.0,2766.9,1.33987]
[1752101719050,0.72262,2766.8,2766.7,0.7226]
[1752101719347,2.78234595,2766.8,2766.7,1.3399]
[1752101720849,2.78234595,2766.8,2766.7,0.6173]
[1752101721453,4.07904595,2766.8,2766.7,0.6173]
[1752101721654,5.57523362,2766.8,2766.7,0.6173]
[1752101722555,0.72268,2766.5,2766.4,0.72269]
[1752101722755,0.72268,2766.5,2766.4,1.33999]
[1752101724356,3.93047,2766.6,2766.5,0.72268]
[1752101724659,3.2078,2766.6,2766.5,2.27928]
[1752101724855,0.72265,2766.7,2766.6,0.72263]
[1752101725053,2.21995441,2766.7,2766.6,1.66193]
[1752101725261,1.49730441,2766.7,2766.6,2.27923]
[1752101726060,1.49730441,2766.7,2766.6,2.88463]
[1752101729060,1.01203148,2766.8,2766.7,0.72262]
[1752101729261,2.50460589,2766.8,2766.7,1.33992]
[1752101729461,2.50460589,2766.8,2766.7,3.48632]
[1752101730055,3.38762195,2768.0,2767.7,3.20779054]
[1752101730261,4.29246514,2768.4,2768.3,0.72221]
[1752101730456,0.971,2769.0,2768.9,0.72205]
[1752101730662,1.6359,2769.0,2768.9,0.72205]
[1752101731064,1.6359,2769.0,2768.9,0.72345]
[1752101732059,0.6649,2769.0,2768.9,0.72345]
[1752101732465,1.6359,2769.0,2768.9,0.72345]
[1752101732770,1.6359,2769.0,2768.6,4.4149]
[1752101732968,1.38694,2769.0,2768.8,0.72206]
[1752101733162,0.971,2768.9,2768.8,0.72206]
[1752101733362,1.6359,2768.9,2768.8,1.24885868]
[1752101733558,1.6359,2768.9,2768.8,1.76743147]